bitfinex/quotes_BTCUSD_20241014
["timestamp","ask_amount","ask_price","bid_price","bid_amount"]
[1728893599454,0.33455815,64583.0,64582.0,0.00868027]
[1728893599676,0.33455815,64583.0,64582.0,0.000823]
[1728893599919,0.33155815,64583.0,64582.0,0.000823]
[1728893600141,0.33255815,64583.0,64582.0,0.007823]
[1728893600815,0.33155815,64583.0,64582.0,0.007823]
[1728893601261,0.33255815,64583.0,64582.0,0.014823]
[1728893605018,0.31806301,64583.0,64582.0,0.014823]
[1728893605264,0.33256358,64583.0,64582.0,0.014823]
[1728893605736,0.17772458,64583.0,64582.0,0.014823]
[1728893605980,0.33256358,64583.0,64582.0,0.014823]
[1728893606418,0.01650057,64583.0,64582.0,0.014823]
[1728893607128,0.01650057,64583.0,64582.0,0.02267703]
[1728893607353,0.01650057,64583.0,64582.0,0.014823]
[1728893608506,0.01650057,64583.0,64582.0,0.02267703]
[1728893608944,0.01650057,64583.0,64582.0,0.02267162]
[1728893611336,0.01650057,64583.0,64582.0,0.014823]
[1728893611756,0.17133957,64583.0,64582.0,0.014823]
[1728893612021,0.01650057,64583.0,64582.0,0.014823]
[1728893612487,0.33256358,64583.0,64582.0,0.014823]
[1728893612953,0.31806301,64583.0,64582.0,0.014823]
[1728893613173,0.33257251,64583.0,64582.0,0.014823]
[1728893615934,0.31806301,64583.0,64582.0,0.014823]
[1728893616196,0.33257697,64583.0,64582.0,0.014823]
[1728893617145,0.34106301,64583.0,64582.0,0.014823]
[1728893617366,0.35557875,64583.0,64582.0,0.014823]
[1728893617597,0.35558074,64583.0,64582.0,0.014823]
[1728893617820,0.34808074,64583.0,64582.0,0.014823]
[1728893618280,0.34808074,64583.0,64582.0,0.007823]
[1728893618728,0.34908074,64583.0,64582.0,0.007823]
[1728893619200,0.34808074,64583.0,64582.0,0.007823]
[1728893619437,0.34808074,64583.0,64582.0,0.000823]
[1728893619694,0.34908074,64583.0,64582.0,0.000823]
[1728893620373,0.34808074,64583.0,64582.0,0.000823]
[1728893620830,0.34908074,64583.0,64582.0,0.000823]
[1728893621052,0.35208074,64583.0,64582.0,0.000823]
[1728893621503,0.34908074,64583.0,64582.0,0.000823]
[1728893621737,0.44908074,64583.0,64582.0,0.000823]
[1728893621951,0.49649797,64583.0,64582.0,0.000823]
[1728893623599,0.32708074,64583.0,64582.0,0.000823]
[1728893624260,0.32608074,64583.0,64582.0,0.000823]
[1728893624453,0.34808074,64583.0,64582.0,0.000823]
[1728893625185,0.34908074,64583.0,64582.0,0.000823]
[1728893625416,0.34908263,64583.0,64582.0,0.000823]
[1728893625638,0.49018491,64583.0,64582.0,0.000823]
[1728893626097,0.49118491,64583.0,64582.0,0.006823]
[1728893626585,0.49118491,64583.0,64582.0,0.013823]
[1728893626786,0.49218491,64583.0,64582.0,0.020823]
[1728893627012,0.49018491,64583.0,64582.0,0.007823]
[1728893627285,0.48918491,64583.0,64582.0,0.000823]
[1728893627504,0.49018491,64583.0,64582.0,0.000823]
[1728893627924,0.34908263,64583.0,64582.0,0.000823]
[1728893628126,0.34808263,64583.0,64582.0,0.000823]
[1728893628348,0.35008263,64583.0,64582.0,0.000823]
[1728893629023,0.35208263,64583.0,64582.0,0.000823]
[1728893629238,0.35008263,64583.0,64582.0,0.000823]
[1728893629710,0.34908263,64583.0,64582.0,0.000823]
[1728893630162,0.35108263,64583.0,64582.0,0.000823]
[1728893630405,0.35008263,64583.0,64582.0,0.000823]
[1728893630628,0.34808263,64583.0,64582.0,0.000823]
[1728893630849,0.35008263,64583.0,64582.0,0.000823]
[1728893631068,0.35108263,64583.0,64582.0,0.000823]
[1728893631318,0.34908263,64583.0,64582.0,0.000823]
[1728893631532,0.35008263,64583.0,64582.0,0.000823]
[1728893631974,0.32708263,64583.0,64582.0,0.000823]
[1728893632196,0.32608263,64583.0,64582.0,0.000823]
[1728893632654,0.32808263,64583.0,64582.0,0.000823]
[1728893632893,0.32508263,64583.0,64582.0,0.000823]
[1728893633052,0.32608263,64583.0,64582.0,0.001823]
[1728893633505,0.32508263,64583.0,64582.0,0.000823]
[1728893633667,0.32508413,64583.0,64582.0,0.000823]
[1728893633870,0.32508413,64583.0,64582.0,0.003823]
[1728893634325,0.32508413,64583.0,64582.0,0.006823]
[1728893636531,0.32508413,64583.0,64582.0,0.000823]
[1728893636800,0.32508413,64583.0,64582.0,0.002823]
[1728893637651,0.32508543,64583.0,64582.0,0.002823]
[1728893639499,0.32508666,64583.0,64582.0,0.001823]
[1728893640179,0.32508666,64583.0,64582.0,0.003823]
[1728893640618,0.32508666,64583.0,64582.0,0.000823]
[1728893641041,0.3250889,64583.0,64582.0,0.003823]
[1728893642109,0.3250889,64583.0,64582.0,0.006823]
[1728893644510,0.32509116,64583.0,64582.0,0.006823]
[1728893644960,0.01452815,64583.0,64582.0,0.006823]
[1728893645182,0.01452815,64583.0,64582.0,0.436264]
[1728893645401,0.01452815,64583.0,64582.0,0.4465713]
[1728893645648,0.01452815,64583.0,64582.0,0.9130913]
[1728893645880,0.01452815,64583.0,64582.0,1.00390126]
[1728893646088,0.01452815,64583.0,64582.0,1.00890126]
[1728893646305,0.01552815,64583.0,64582.0,1.01190126]
[1728893646540,0.01552815,64583.0,64582.0,1.00890126]
[1728893646541,0.001,64583.0,64582.0,1.00890126]
[1728893646773,0.001646,64584.0,64583.0,0.159839]
[1728893647020,0.001646,64584.0,64583.0,0.886559]
[1728893647246,0.001646,64584.0,64583.0,0.89956607]
[1728893647900,0.001646,64584.0,64583.0,1.04092611]
[1728893649448,0.001646,64584.0,64583.0,1.03892611]
[1728893649676,0.001646,64584.0,64583.0,1.04992611]
[1728893649677,0.002646,64584.0,64583.0,1.04992611]
[1728893649896,0.003646,64584.0,64583.0,1.06092611]
[1728893650532,0.003646,64584.0,64583.0,0.75972707]
[1728893650984,0.01812953,64584.0,64583.0,0.91956607]
[1728893651617,0.01812953,64584.0,64583.0,0.76472707]
[1728893651838,0.01812953,64584.0,64583.0,0.68432707]
[1728893652732,0.01812986,64584.0,64583.0,0.68432707]
[1728893654357,0.01812986,64584.0,64583.0,0.49752707]
[1728893655244,0.01712986,64584.0,64583.0,0.48652707]
[1728893655453,0.01612986,64584.0,64583.0,0.47552707]
[1728893655665,0.01612986,64584.0,64583.0,0.48352707]
[1728893655892,0.01712986,64584.0,64583.0,0.48352707]
[1728893656112,0.17296686,64584.0,64583.0,0.49152707]
[1728893656530,0.17296686,64584.0,64583.0,0.48352707]
[1728893656739,0.17196686,64584.0,64583.0,0.48352707]
[1728893657177,0.01712986,64584.0,64583.0,0.48352707]
[1728893657401,0.17196686,64584.0,64583.0,0.48352707]
[1728893657826,0.33319087,64584.0,64583.0,0.48352707]
[1728893658040,0.33419087,64584.0,64583.0,0.49152707]
[1728893660130,0.35719925,64584.0,64583.0,0.49152707]
[1728893660589,0.35619925,64584.0,64583.0,0.48352707]
[1728893660799,0.35719925,64584.0,64583.0,0.48352707]
[1728893661517,0.35619925,64584.0,64583.0,0.47552707]
[1728893662222,0.78015929,64584.0,64583.0,0.47552707]
[1728893662435,0.71439925,64584.0,64583.0,0.47552707]
[1728893662653,0.7607721,64584.0,64583.0,0.47552707]
[1728893663300,0.85575929,64584.0,64583.0,0.47552707]
[1728893663511,0.76477867,64584.0,64583.0,0.47552707]
[1728893663730,0.72339925,64584.0,64583.0,0.47552707]
[1728893663954,0.72339653,64584.0,64583.0,0.47552707]
[1728893664388,0.91113391,64584.0,64583.0,0.47552707]
[1728893664603,0.72339653,64584.0,64583.0,0.47552707]
[1728893665075,0.71939653,64584.0,64583.0,0.47552707]
[1728893665300,0.54479653,64584.0,64583.0,0.47552707]
[1728893665527,0.68615657,64584.0,64583.0,0.47552707]
[1728893666446,0.73252861,64584.0,64583.0,0.47552707]
[1728893667148,0.87388865,64584.0,64583.0,0.47552707]
[1728893667369,0.89708262,64584.0,64583.0,0.47552707]
[1728893667845,0.89707385,64584.0,64583.0,0.47552707]
[1728893668078,0.89307385,64584.0,64583.0,0.47552707]
[1728893668303,0.88307385,64584.0,64583.0,0.47552707]
[1728893668532,0.89407385,64584.0,64583.0,0.47652707]
[1728893668764,0.83650784,64584.0,64583.0,0.47652707]
[1728893669043,1.06687385,64584.0,64583.0,0.47552707]
[1728893669265,1.09487385,64584.0,64583.0,0.47652707]
[1728893669487,1.08087385,64584.0,64583.0,0.47735007]
[1728893669713,1.06687385,64584.0,64583.0,0.47635007]
[1728893669984,1.07887385,64584.0,64583.0,0.47635007]
[1728893670222,1.08987385,64584.0,64583.0,0.47735007]
[1728893670442,1.09482923,64584.0,64583.0,0.47735007]
[1728893670668,1.02528984,64584.0,64583.0,0.47735007]
[1728893671117,1.02030784,64584.0,64583.0,0.47735007]
[1728893671346,1.08084288,64584.0,64583.0,0.47635007]
[1728893671596,1.12906252,64584.0,64583.0,0.47735007]
[1728893671813,1.01528984,64584.0,64583.0,0.47735007]
[1728893672044,1.00228984,64584.0,64583.0,0.47635007]
[1728893672259,1.00830784,64584.0,64583.0,0.47635007]
[1728893672477,1.00730784,64584.0,64583.0,0.47735007]
[1728893672690,1.12318447,64584.0,64583.0,0.47735007]
[1728893672904,1.12718447,64584.0,64583.0,0.47635007]
[1728893673121,0.99730784,64584.0,64583.0,0.47635007]
[1728893673330,1.01030784,64584.0,64583.0,0.47735007]
[1728893673535,0.97563508,64584.0,64583.0,0.47735007]
[1728893673760,1.11699512,64584.0,64583.0,0.47735007]
[1728893673993,1.02430784,64584.0,64583.0,0.47735007]
[1728893674288,1.11699498,64584.0,64583.0,0.47735007]
[1728893674513,1.10399498,64584.0,64583.0,0.47635007]
[1728893674737,1.43106898,64584.0,64583.0,0.47635007]
[1728893674949,1.45906898,64584.0,64583.0,0.47735007]
[1728893675384,1.4590531,64584.0,64583.0,0.47735007]
[1728893675863,1.36636471,64584.0,64583.0,0.47735007]
[1728893676078,1.48224134,64584.0,64583.0,0.47735007]
[1728893676289,1.36836471,64584.0,64583.0,0.47735007]
[1728893676501,1.36636471,64584.0,64583.0,0.47735007]
[1728893677189,1.43585273,64584.0,64583.0,0.47735007]
[1728893677415,1.35190109,64584.0,64583.0,0.47735007]
[1728893679691,1.00374105,64584.0,64583.0,0.47735007]
[1728893679912,1.38762886,64584.0,64583.0,0.47735007]
[1728893680133,1.33570109,64584.0,64583.0,0.47735007]
[1728893680344,1.38202162,64584.0,64583.0,0.47735007]
[1728893680582,1.35017738,64584.0,64583.0,0.47735007]
[1728893680759,1.41949791,64584.0,64583.0,0.47735007]
[1728893681229,1.41949791,64584.0,64583.0,0.466343]
[1728893681444,1.37317738,64584.0,64583.0,0.466343]
[1728893684635,1.47913442,64584.0,64583.0,0.466343]
[1728893684853,1.37815938,64584.0,64583.0,0.466343]
[1728893685068,1.47076865,64584.0,64583.0,0.466343]
[1728893685280,1.47276388,64584.0,64583.0,0.47736042]
[1728893685718,1.38015938,64584.0,64583.0,0.47736042]
[1728893686183,1.47275918,64584.0,64583.0,0.47736042]
[1728893686593,1.47075918,64584.0,64583.0,0.47736042]
[1728893689413,1.37815938,64584.0,64583.0,0.47736042]
[1728893690498,1.37815938,64584.0,64583.0,0.42886999]
[1728893690708,1.37815938,64584.0,64583.0,0.41785257]
[1728893690974,1.37820177,64584.0,64583.0,0.41785257]
[1728893691193,1.36368309,64584.0,64583.0,0.41785257]
[1728893692022,1.26270257,64584.0,64583.0,0.41785257]
[1728893692271,1.33187866,64584.0,64583.0,0.41785257]
[1728893693740,1.26245438,64584.0,64583.0,0.41785257]
[1728893694647,1.35505418,64584.0,64583.0,0.41785257]
[1728893694859,1.0735844,64584.0,64583.0,0.41785257]
[1728893695080,1.07185438,64584.0,64583.0,0.41785257]
[1728893695324,1.07185438,64584.0,64583.0,0.42544977]
[1728893695325,1.16445418,64584.0,64583.0,0.42544977]
[1728893695537,1.16445418,64584.0,64583.0,0.41785257]
[1728893696174,1.16645418,64584.0,64583.0,0.41785257]
[1728893696385,1.07185438,64584.0,64583.0,0.41785257]
[1728893696835,1.07385438,64584.0,64583.0,0.41785257]
[1728893697261,1.18761597,64584.0,64583.0,0.41785257]
[1728893697477,1.18975006,64584.0,64583.0,0.41785257]
[1728893698142,1.18775006,64584.0,64583.0,0.41785257]
[1728893698356,1.07185438,64584.0,64583.0,0.41785257]
[1728893698609,1.07185438,64584.0,64583.0,0.38688457]
[1728893699034,1.18778049,64584.0,64583.0,0.38688457]
[1728893699246,1.07185438,64584.0,64583.0,0.38688457]
[1728893700125,1.07385438,64584.0,64583.0,0.38688457]
[1728893700332,1.07185438,64584.0,64583.0,0.38688457]
[1728893701015,1.07185438,64584.0,64583.0,0.32494857]
[1728893702549,1.07185438,64584.0,64583.0,0.26301257]
[1728893703187,1.07185438,64584.0,64583.0,0.001823]
[1728893704252,0.9004026,64584.0,64583.0,0.001823]
[1728893704467,0.91650247,64584.0,64583.0,0.001823]
[1728893704681,0.8004026,64584.0,64583.0,0.001823]
[1728893704931,0.7774026,64584.0,64583.0,0.001823]
[1728893705841,1.04304786,64584.0,64583.0,0.001823]
[1728893706056,1.18927225,64584.0,64583.0,0.001823]
[1728893706355,1.07317238,64584.0,64583.0,0.001823]
[1728893706835,1.07517238,64584.0,64583.0,0.001823]
[1728893707574,0.89143282,64584.0,64583.0,0.001823]
[1728893707790,1.07517238,64584.0,64583.0,0.001823]
[1728893708026,1.07517238,64584.0,64572.0,0.19]
[1728893708027,0.36873278,64573.0,64572.0,0.19]
[1728893708268,0.52995679,64573.0,64572.0,0.19]
[1728893708491,0.59966577,64573.0,64572.0,0.19]
[1728893708722,0.52995679,64573.0,64572.0,0.19]
[1728893708987,0.52995679,64573.0,64571.0,0.000823]
[1728893708988,0.37509379,64573.0,64571.0,0.000823]
[1728893709188,0.74075074,64572.0,64571.0,0.000823]
[1728893709397,0.43908901,64572.0,64571.0,0.000823]
[1728893710071,0.5320564,64572.0,64571.0,0.000823]
[1728893711165,0.43908901,64572.0,64571.0,0.000823]
[1728893711382,0.44308901,64572.0,64571.0,0.000823]
[1728893712273,0.44708901,64572.0,64571.0,0.000823]
[1728893712541,0.44308901,64572.0,64571.0,0.000823]
[1728893712763,0.52995879,64572.0,64571.0,0.000823]
[1728893713183,0.52995879,64572.0,64571.0,0.001823]
[1728893713184,0.53695879,64572.0,64571.0,0.001823]
[1728893713607,0.55220378,64572.0,64571.0,0.001823]
[1728893713818,0.55220378,64572.0,64571.0,0.195923]
[1728893713819,0.55920378,64572.0,64571.0,0.195923]
[1728893714081,0.55220378,64572.0,64571.0,0.194923]
[1728893714290,0.55220378,64572.0,64571.0,0.195923]
[1728893714507,0.55920378,64572.0,64571.0,0.195923]
[1728893715853,0.55920378,64572.0,64571.0,0.001823]
[1728893718808,0.73157356,64572.0,64571.0,0.001823]
[1728893719066,0.64070378,64572.0,64571.0,0.001823]
[1728893719279,0.73357356,64572.0,64571.0,1e-06]
[1728893719694,0.73157356,64572.0,64571.0,1e-06]
[1728893719917,0.73157356,64572.0,64563.0,0.000823]
[1728893719918,0.45962456,64564.0,64563.0,0.000823]
[1728893720142,0.62084857,64564.0,64563.0,0.000823]
[1728893720611,0.69724857,64564.0,64563.0,0.000823]
[1728893721264,0.43910901,64564.0,64563.0,0.000823]
[1728893721444,0.62084857,64564.0,64563.0,0.000823]
[1728893721698,0.62984857,64564.0,64563.0,0.000823]
[1728893721910,0.6301092,64564.0,64563.0,0.000823]
[1728893722126,0.6301092,64564.0,64561.0,0.000823]
[1728893722127,0.7357242,64564.0,64561.0,0.000823]
[1728893722338,0.43911301,64562.0,64561.0,0.000823]
[1728893722975,0.62085257,64562.0,64561.0,0.000823]
[1728893723194,0.71375864,64562.0,64561.0,0.000823]
[1728893723732,0.50698279,64562.0,64561.0,0.076623]
[1728893723927,0.50698279,64562.0,64561.0,0.259923]
[1728893724391,0.41611301,64562.0,64561.0,0.259923]
[1728893724632,0.51798279,64562.0,64561.0,0.259923]
[1728893724847,0.40698279,64562.0,64561.0,0.259923]
[1728893725280,0.42598279,64562.0,64561.0,0.259923]
[1728893725770,0.41298279,64562.0,64561.0,0.259923]
[1728893726000,0.463684,64562.0,64561.0,0.259923]
[1728893726264,0.465684,64562.0,64561.0,0.259923]
[1728893726471,0.459684,64562.0,64561.0,0.259923]
[1728893726909,0.462684,64562.0,64561.0,0.259923]
[1728893727146,0.485684,64562.0,64561.0,0.184123]
[1728893728268,0.480684,64562.0,64561.0,0.184123]
[1728893728484,0.484684,64562.0,64561.0,0.000823]
[1728893728736,0.487684,64562.0,64561.0,0.000823]
[1728893728957,0.65735713,64562.0,64561.0,0.000823]
[1728893729179,0.67758151,64562.0,64561.0,0.000823]
[1728893729379,0.588684,64562.0,64561.0,0.000823]
[1728893729841,0.580684,64562.0,64561.0,0.000823]
[1728893730074,0.586684,64562.0,64561.0,0.000823]
[1728893730295,0.591684,64562.0,64561.0,0.000823]
[1728893730537,0.82614995,64562.0,64561.0,0.000823]
[1728893730759,0.73325499,64562.0,64561.0,0.000823]
[1728893730989,0.84937687,64562.0,64561.0,0.000823]
[1728893731473,0.73325499,64562.0,64561.0,0.000823]
[1728893731917,0.72825499,64562.0,64561.0,0.000823]
[1728893732135,0.85437687,64562.0,64561.0,0.000823]
[1728893732601,1.01503699,64562.0,64561.0,0.000823]
[1728893733058,0.254909,64554.0,64546.0,0.0169402]
[1728893733290,0.254909,64554.0,64543.0,0.0004102]
[1728893733291,0.177933,64544.0,64543.0,0.0004102]
[1728893733527,0.480728,64544.0,64543.0,0.0004102]
[1728893734963,0.484728,64544.0,64543.0,0.0004102]
[1728893735421,0.584728,64544.0,64543.0,0.0004102]
[1728893735675,0.587728,64544.0,64543.0,0.0004102]
[1728893736096,0.584728,64544.0,64543.0,0.0004102]
[1728893736519,0.592728,64544.0,64543.0,0.0004102]
[1728893736991,0.588728,64544.0,64543.0,0.0004102]
[1728893737215,0.592728,64544.0,64543.0,0.0004102]
[1728893737661,0.588728,64544.0,64543.0,0.0004102]
[1728893737903,0.598728,64544.0,64543.0,0.0004102]
[1728893744346,0.588728,64544.0,64543.0,0.0004102]
[1728893744551,0.590728,64544.0,64543.0,0.0004102]
[1728893744832,0.588728,64544.0,64543.0,0.0004102]
[1728893745069,0.593728,64544.0,64543.0,0.0004102]
[1728893745306,0.562728,64544.0,64543.0,0.2775102]
[1728893745538,0.32515701,64544.0,64543.0,0.2775102]
[1728893745818,0.466728,64544.0,64543.0,0.2775102]
[1728893746041,0.009,64544.0,64543.0,0.2825102]
[1728893746283,0.009,64544.0,64543.0,0.4394452]
[1728893746511,0.009,64544.0,64543.0,0.44881079]
[1728893746765,0.009,64544.0,64543.0,0.29387579]
[1728893746997,0.004,64544.0,64543.0,0.29387579]
[1728893747237,0.005,64544.0,64543.0,0.29032673]
[1728893747458,0.38685943,64550.0,64546.0,0.005]
[1728893747951,0.38685943,64550.0,64547.0,0.01166043]
[1728893748208,0.23194143,64550.0,64548.0,0.1993]
[1728893748430,0.38686143,64550.0,64548.0,0.1993]
[1728893748693,0.38786143,64550.0,64549.0,0.01163204]
[1728893749138,0.38686143,64550.0,64549.0,0.01163204]
[1728893749364,0.38686143,64550.0,64548.0,0.1993]
[1728893749365,0.23194143,64550.0,64548.0,0.1993]
[1728893749646,0.154921,64549.0,64548.0,0.1993]
[1728893749903,0.31614501,64549.0,64548.0,0.1993]
[1728893750420,0.31614501,64549.0,64544.0,0.1937]
[1728893750421,0.15493,64545.0,64544.0,0.1937]
[1728893750676,0.31615401,64545.0,64544.0,0.1937]
[1728893751140,0.16122401,64545.0,64544.0,0.20540242]
[1728893752067,0.31615401,64545.0,64544.0,0.20540242]
[1728893752291,0.16222401,64545.0,64544.0,0.20540242]
[1728893752543,0.31715401,64545.0,64544.0,0.20540242]
[1728893752794,0.16222401,64545.0,64544.0,0.20540242]
[1728893753275,0.304795,64545.0,64544.0,0.01170242]
[1728893753538,0.459725,64545.0,64544.0,0.01170242]
[1728893753791,0.154933,64544.0,64543.0,0.0004102]
[1728893754037,0.31615701,64544.0,64543.0,0.0004102]
[1728893754527,0.33915701,64544.0,64543.0,0.0004102]
[1728893755500,0.34863764,64544.0,64543.0,0.0004102]
[1728893755753,0.44863764,64544.0,64543.0,0.0004102]
[1728893755996,0.45263764,64544.0,64543.0,0.0004102]
[1728893756523,0.44863764,64544.0,64543.0,0.0004102]
[1728893757233,0.44963764,64544.0,64543.0,0.0004102]
[1728893757731,0.59120863,64544.0,64543.0,0.0004102]
[1728893759937,0.14157099,64539.0,64528.0,0.0802]
[1728893760168,0.16122401,64538.0,64528.0,0.0802]
[1728893760428,0.47112301,64538.0,64529.0,0.01060573]
[1728893760699,0.23194143,64537.0,64531.0,0.005]
[1728893760922,0.23194143,64537.0,64532.0,0.0801]
[1728893761228,0.23194143,64537.0,64532.0,0.235061]
[1728893761447,0.23194143,64537.0,64532.0,0.08801841]
[1728893761945,0.154952,64536.0,64532.0,0.08801841]
[1728893762181,0.38689343,64537.0,64532.0,0.08801841]
[1728893762435,0.38789343,64537.0,64532.0,0.0801]
[1728893762672,0.23294143,64537.0,64533.0,0.00791355]
[1728893762919,0.23194143,64537.0,64534.0,0.1921]
[1728893763164,0.23294143,64537.0,64534.0,0.1921]
[1728893763415,0.155953,64536.0,64535.0,0.00789461]
[1728893764170,0.31717701,64536.0,64535.0,0.00789461]
[1728893764410,0.34017701,64536.0,64535.0,0.00789461]
[1728893764649,0.34017701,64536.0,64528.0,0.000823]
[1728893764650,0.154969,64529.0,64528.0,0.000823]
[1728893764881,0.457764,64529.0,64528.0,0.000823]
[1728893766353,0.662064,64529.0,64528.0,0.000823]
[1728893766564,0.52049301,64529.0,64528.0,0.000823]
[1728893766797,0.664064,64529.0,64528.0,0.000823]
[1728893767026,0.663064,64529.0,64528.0,0.000823]
[1728893767943,0.71342472,64529.0,64528.0,0.000823]
[1728893768377,0.667046,64529.0,64528.0,0.000823]
[1728893768815,0.67650209,64529.0,64528.0,0.000823]
[1728893769252,0.68450209,64529.0,64528.0,0.000823]
[1728893769727,0.64852009,64529.0,64528.0,0.000823]
[1728893769950,0.57922009,64529.0,64528.0,0.000823]
[1728893770434,0.57822009,64529.0,64528.0,0.000823]
[1728893770671,0.581764,64529.0,64528.0,0.000823]
[1728893770916,0.604764,64529.0,64528.0,0.000823]
[1728893771445,0.601764,64529.0,64528.0,0.000823]
[1728893771681,0.612764,64529.0,64528.0,0.000823]
[1728893772156,0.601764,64529.0,64528.0,0.000823]
[1728893772394,0.602764,64529.0,64528.0,0.000823]
[1728893772632,0.581764,64529.0,64528.0,0.000823]
[1728893772879,0.580764,64529.0,64528.0,0.000823]
[1728893773326,0.583764,64529.0,64528.0,0.000823]
[1728893773818,0.581764,64529.0,64528.0,0.000823]
[1728893774048,0.83181571,64529.0,64528.0,0.000823]
[1728893774300,0.670446,64529.0,64528.0,0.000823]
[1728893774510,0.669446,64529.0,64528.0,0.000823]
[1728893774949,0.72180638,64529.0,64528.0,0.000823]
[1728893775687,0.71580638,64529.0,64528.0,0.000823]
[1728893775952,0.70780638,64529.0,64528.0,0.000823]
[1728893776143,0.73580638,64529.0,64528.0,0.000823]
[1728893776551,0.675446,64529.0,64528.0,0.000823]
[1728893776824,0.689446,64529.0,64528.0,0.000823]
[1728893777523,0.72180638,64529.0,64528.0,0.000823]
[1728893777731,0.675446,64529.0,64528.0,0.000823]
[1728893777956,0.689446,64529.0,64528.0,0.000823]
[1728893778200,0.36719301,64529.0,64528.0,0.000823]
[1728893778439,0.508764,64529.0,64528.0,0.000823]
[1728893778956,0.508764,64529.0,64518.0,0.000823]
[1728893778957,0.177993,64519.0,64518.0,0.000823]
[1728893779229,0.480788,64519.0,64518.0,0.000823]
[1728893779472,0.580788,64519.0,64518.0,0.000823]
[1728893780156,0.660188,64519.0,64518.0,0.000823]
[1728893780374,0.66517,64519.0,64518.0,0.000823]
[1728893780596,0.67617,64519.0,64518.0,0.000823]
[1728893780820,0.66517,64519.0,64518.0,0.000823]
[1728893781048,0.67451493,64519.0,64518.0,0.000823]
[1728893781764,0.104982,64518.0,64506.0,0.000823]
[1728893782024,0.41959199,64507.0,64506.0,0.000823]
[1728893782252,0.580816,64507.0,64506.0,0.000823]
[1728893784119,0.43924501,64507.0,64506.0,0.000823]
[1728893784360,0.557816,64507.0,64506.0,0.000823]
[1728893784587,0.31605853,64507.0,64506.0,0.000823]
[1728893785074,0.31605853,64507.0,64506.0,0.01176603]
[1728893785330,0.31605853,64507.0,64506.0,0.000823]
[1728893785562,0.31605853,64507.0,64506.0,0.01176603]
[1728893785784,0.31605853,64507.0,64506.0,0.000823]
[1728893786007,0.31605853,64507.0,64506.0,0.01176603]
[1728893786236,0.31605853,64507.0,64506.0,0.000823]
[1728893786481,0.31605853,64507.0,64506.0,0.01176603]
[1728893786778,0.31605853,64507.0,64506.0,0.000823]
[1728893787030,0.31605853,64507.0,64506.0,0.01176603]
[1728893787266,0.33905853,64507.0,64506.0,0.000823]
[1728893787507,0.31605853,64507.0,64506.0,0.01176603]
[1728893787988,0.16122401,64507.0,64506.0,0.01176603]
[1728893788236,0.31624501,64507.0,64506.0,0.01176603]
[1728893788727,0.16122401,64507.0,64506.0,0.01176603]
[1728893788955,0.31624501,64507.0,64506.0,0.01176603]
[1728893789869,0.310009,64515.0,64506.0,0.01176603]
[1728893790124,0.23194143,64509.0,64506.0,0.01176603]
[1728893790370,0.16122401,64514.0,64508.0,0.14157099]
[1728893790608,0.16122401,64514.0,64511.0,0.155011]
[1728893790854,0.16122401,64514.0,64510.0,0.155013]
[1728893791132,0.16122401,64514.0,64512.0,0.01144803]
[1728893791365,0.16122401,64514.0,64511.0,0.01146224]
[1728893791621,0.155009,64512.0,64507.0,0.419319]
[1728893791850,0.16122401,64514.0,64507.0,0.2643]
[1728893792116,0.30995,64527.0,64507.0,0.2643]
[1728893792401,0.30995,64527.0,64513.0,0.344207]
[1728893792402,0.001,64514.0,64513.0,0.344207]
[1728893792613,0.001,64514.0,64513.0,0.65422]
[1728893792831,0.003,64515.0,64514.0,0.155005]
[1728893793094,0.30995,64527.0,64516.0,0.31]
[1728893793346,0.23194143,64523.0,64519.0,0.15499]
[1728893793598,0.16122401,64522.0,64519.0,0.15499]
[1728893793845,0.16122401,64522.0,64515.0,0.007]
[1728893793846,0.16122401,64522.0,64520.0,0.15499]
[1728893794617,0.001648,64529.0,64524.0,0.154979]
[1728893794887,0.23194143,64523.0,64522.0,0.154984]
[1728893795110,0.31619601,64528.0,64522.0,0.46495]
[1728893795111,0.16122401,64528.0,64522.0,0.46495]
[1728893795344,0.31619601,64528.0,64523.0,0.154983]
[1728893795580,0.31619601,64528.0,64524.0,0.46494]
[1728893795581,0.16122401,64528.0,64524.0,0.46494]
[1728893796051,0.001648,64529.0,64525.0,0.005]
[1728893796280,0.001648,64529.0,64528.0,0.154971]
[1728893797045,0.001648,64529.0,64528.0,0.904881]
[1728893797758,0.001648,64529.0,64528.0,0.74991]
[1728893797993,0.156617,64529.0,64528.0,0.66201]
[1728893798232,0.31784101,64529.0,64528.0,0.46491]
[1728893799292,0.31784101,64529.0,64528.0,0.46691]
[1728893799777,0.34084101,64529.0,64528.0,0.46691]
[1728893804524,0.16287201,64529.0,64528.0,0.46691]
[1728893804781,0.001648,64529.0,64528.0,0.621881]
[1728893805873,0.001648,64529.0,64528.0,0.46691]
[1728893806553,0.001648,64529.0,64528.0,0.621881]
[1728893806781,0.001648,64529.0,64528.0,0.46691]
[1728893810209,0.31784101,64529.0,64528.0,0.46691]
[1728893814284,0.16287201,64529.0,64528.0,0.46691]
[1728893814951,0.16287201,64529.0,64528.0,0.621881]
[1728893814952,0.001648,64529.0,64528.0,0.621881]
[1728893815182,0.001648,64529.0,64528.0,0.626881]
[1728893815409,0.001648,64529.0,64528.0,0.887581]
[1728893816306,0.001648,64529.0,64528.0,1.03115199]
[1728893817478,0.001648,64529.0,64528.0,1.02915199]
[1728893817708,0.015648,64529.0,64528.0,1.03015199]
[1728893818171,0.015648,64529.0,64528.0,1.02915199]
[1728893818172,0.001648,64529.0,64528.0,1.02915199]
[1728893818622,0.029648,64529.0,64528.0,1.291376]
[1728893818853,0.029648,64529.0,64528.0,1.30284627]
[1728893819113,0.23194143,64534.0,64533.0,0.005]
[1728893819365,0.23194143,64534.0,64533.0,1.03780999]
[1728893819615,0.23194143,64542.0,64533.0,1.03780999]
[1728893819616,0.23194143,64542.0,64538.0,0.007]
[1728893819861,0.23194143,64542.0,64538.0,0.66521799]
[1728893820119,0.23194143,64542.0,64538.0,0.826442]
[1728893820390,0.23194143,64542.0,64538.0,1.291282]
[1728893820659,0.23194143,64542.0,64538.0,1.30275227]
[1728893821627,0.001646,64544.0,64538.0,1.44432326]
[1728893821899,0.001646,64544.0,64543.0,0.67250599]
[1728893822131,0.001646,64544.0,64543.0,0.83373]
[1728893823631,0.015646,64544.0,64543.0,0.83373]
[1728893824611,0.029646,64544.0,64543.0,1.29954]
[1728893824875,0.029646,64544.0,64543.0,1.31098062]